[Event "Top 12 Féminin 2026"]
[Site "Asnières-sur-Seine, France"]
[Date "2026.05.13"]
[Round "1.6"]
[White "Alexieva, Silvia"]
[Black "Bensdorp-De Labaca, Marlies"]
[Result "1/2-1/2"]
[TimeControl "1h30 / 40 moves + 30m + 30sec/move"]
[WhiteTitle "IM"]
[BlackTitle "WIM"]
[WhiteFideId "-"]
[BlackFideId "-"]
[WhiteElo "2197"]
[BlackElo "2175"]

1. c4 {[%clk 01:30:52]} {[%emt 00:00:06]} e6 {[%clk 01:30:56]} {[%emt
00:00:05]} 2. Nf3 {[%clk 01:30:42]} {[%emt 00:00:40]} Nf6 {[%clk 01:30:59]}
{[%emt 00:00:28]} 3. g3 {[%clk 01:30:50]} {[%emt 00:00:22]} d5 {[%clk
01:31:24]} {[%emt 00:00:05]} 4. Bg2 {[%clk 01:31:09]} {[%emt 00:00:11]} Bd6
{[%clk 01:31:06]} {[%emt 00:00:48]} 5. O-O {[%clk 01:29:41]} {[%emt 00:01:57]}
O-O {[%clk 01:28:08]} {[%emt 00:03:28]} 6. cxd5 {[%clk 01:28:35]} {[%emt
00:01:36]} exd5 {[%clk 01:28:17]} {[%emt 00:00:21]} 7. b3 {[%clk 01:28:52]}
{[%emt 00:00:13]} Nc6 {[%clk 01:23:17]} {[%emt 00:05:30]} 8. Bb2 {[%clk
01:21:19]} {[%emt 00:08:03]} Re8 {[%clk 01:22:03]} {[%emt 00:01:44]} 9. Nc3
{[%clk 01:17:31]} {[%emt 00:04:18]} a6 {[%clk 01:20:40]} {[%emt 00:01:54]} 10.
Rc1 {[%clk 01:09:42]} {[%emt 00:08:19]} h6 {[%clk 01:17:57]} {[%emt 00:03:12]}
11. Na4 {[%clk 01:07:02]} {[%emt 00:03:10]} Qe7 {[%clk 01:16:28]} {[%emt
00:01:59]} 12. Re1 {[%clk 01:05:45]} {[%emt 00:01:47]} Bd7 {[%clk 01:10:43]}
{[%emt 00:06:15]} 13. Qc2 {[%clk 00:59:45]} {[%emt 00:06:29]} Nb4 {[%clk
00:57:54]} {[%emt 00:13:19]} 14. Qb1 {[%clk 00:59:27]} {[%emt 00:00:48]} b5
{[%clk 00:52:03]} {[%emt 00:06:22]} 15. Bxf6 {[%clk 00:57:13]} {[%emt
00:02:44]} Qxf6 {[%clk 00:49:42]} {[%emt 00:02:50]} 16. Nc5 {[%clk 00:56:35]}
{[%emt 00:01:08]} Bf5 {[%clk 00:43:25]} {[%emt 00:06:47]} 17. d3 {[%clk
00:55:26]} {[%emt 00:01:39]} a5 {[%clk 00:27:39]} {[%emt 00:16:16]} 18. Nh4
{[%clk 00:43:00]} {[%emt 00:12:55]} Bh7 {[%clk 00:19:18]} {[%emt 00:08:51]} 19.
a3 {[%clk 00:36:58]} {[%emt 00:06:33]} Na6 {[%clk 00:19:28]} {[%emt 00:00:21]}
20. Nxa6 {[%clk 00:36:02]} {[%emt 00:01:25]} Rxa6 {[%clk 00:19:54]} {[%emt
00:00:04]} 21. Bxd5 {[%clk 00:35:25]} {[%emt 00:01:07]} Re5 {[%clk 00:16:32]}
{[%emt 00:03:51]} 22. Bg2 {[%clk 00:28:35]} {[%emt 00:07:20]} Qe7 {[%clk
00:16:31]} {[%emt 00:00:31]} 23. Qc2 {[%clk 00:22:54]} {[%emt 00:06:10]} Rc5
{[%clk 00:14:57]} {[%emt 00:02:05]} 24. Qd2 {[%clk 00:18:37]} {[%emt 00:04:47]}
Rxc1 {[%clk 00:15:00]} {[%emt 00:00:27]} 25. Rxc1 {[%clk 00:19:01]} {[%emt
00:00:06]} Bxa3 {[%clk 00:15:22]} {[%emt 00:00:08]} 26. Rc2 {[%clk 00:17:22]}
{[%emt 00:02:09]} Bb4 {[%clk 00:12:23]} {[%emt 00:03:30]} 27. Qc1 {[%clk
00:16:32]} {[%emt 00:01:19]} c5 {[%clk 00:12:07]} {[%emt 00:00:46]} 28. Bd5
{[%clk 00:16:18]} {[%emt 00:00:44]} Rd6 {[%clk 00:11:15]} {[%emt 00:01:21]} 29.
Rxc5 {[%clk 00:12:27]} {[%emt 00:04:22]} Bxc5 {[%clk 00:10:16]} {[%emt
00:01:29]} 30. Qxc5 {[%clk 00:12:55]} {[%emt 00:00:02]} Qd7 {[%clk 00:08:48]}
{[%emt 00:01:59]} 31. e4 {[%clk 00:13:10]} {[%emt 00:00:14]} Kh8 {[%clk
00:05:40]} {[%emt 00:03:38]} 32. Nf3 {[%clk 00:10:23]} {[%emt 00:03:16]} f6
{[%clk 00:05:20]} {[%emt 00:00:50]} 33. Nd4 {[%clk 00:09:50]} {[%emt 00:01:02]}
Bg8 {[%clk 00:04:55]} {[%emt 00:00:56]} 34. Nxb5 {[%clk 00:07:23]} {[%emt
00:02:57]} Rxd5 {[%clk 00:04:55]} {[%emt 00:00:31]} 35. exd5 {[%clk 00:07:47]}
{[%emt 00:00:05]} Bxd5 {[%clk 00:04:53]} {[%emt 00:00:32]} 36. Nd4 {[%clk
00:07:02]} {[%emt 00:01:15]} Bb7 {[%clk 00:03:41]} {[%emt 00:01:42]} 37. f3
{[%clk 00:07:02]} {[%emt 00:00:30]} a4 {[%clk 00:03:14]} {[%emt 00:00:58]} 38.
bxa4 {[%clk 00:05:54]} {[%emt 00:01:38]} Qxa4 {[%clk 00:03:32]} {[%emt
00:00:11]} 39. Kg2 {[%clk 00:04:29]} {[%emt 00:01:55]} Qd1 {[%clk 00:02:08]}
{[%emt 00:01:54]} 40. Qb5 {[%clk 00:02:53]} {[%emt 00:02:07]} Qd2+ {[%clk
00:02:11]} {[%emt 00:00:27]} 41. Kh3 {[%clk 00:03:08]} {[%emt 00:00:15]} Bc8+
{[%clk 00:01:13]} {[%emt 00:01:29]} 42. g4 {[%clk 00:03:32]} {[%emt 00:00:06]}
Qe1 {[%clk 00:24:24]} {[%emt 00:07:19]} 43. Qb8 {[%clk 00:28:05]} {[%emt
00:05:57]} Qf1+ {[%clk 00:24:23]} {[%emt 00:00:31]} 44. Kg3 {[%clk 00:28:25]}
{[%emt 00:00:10]} Qg1+ {[%clk 00:24:07]} {[%emt 00:00:45]} 45. Kh3 {[%clk
00:28:50]} {[%emt 00:00:05]} Qf1+ {[%clk 00:24:14]} {[%emt 00:00:24]} 46. Kg3
{[%clk 00:29:16]} {[%emt 00:00:04]} Qg1+ {[%clk 00:23:53]} {[%emt 00:00:51]} 47.
Kh3 {[%clk 00:29:41]} {[%emt 00:00:04]} 1/2-1/2

[Event "Top 12 Féminin 2026"]
[Site "Asnières-sur-Seine, France"]
[Date "2026.05.13"]
[Round "1.7"]
[White "Negre, Emilie"]
[Black "Maisuradze, Nino"]
[Result "0-1"]
[TimeControl "1h30 / 40 moves + 30m + 30sec/move"]
[WhiteTitle "WFM"]
[BlackTitle "WGM"]
[WhiteFideId "-"]
[BlackFideId "-"]
[WhiteElo "2101"]
[BlackElo "2198"]

1. e4 {[%clk 01:30:54]} {[%emt 00:00:06]} c5 {[%clk 01:30:52]} {[%emt
00:00:09]} 2. Nf3 {[%clk 01:31:08]} {[%emt 00:00:15]} Nc6 {[%clk 01:30:27]}
{[%emt 00:00:56]} 3. d4 {[%clk 01:31:22]} {[%emt 00:00:15]} cxd4 {[%clk
01:30:53]} {[%emt 00:00:06]} 4. Nxd4 {[%clk 01:31:43]} {[%emt 00:00:08]} Nf6
{[%clk 01:27:51]} {[%emt 00:03:32]} 5. Nc3 {[%clk 01:32:05]} {[%emt 00:00:08]}
e5 {[%clk 01:24:31]} {[%emt 00:03:51]} 6. Ndb5 {[%clk 01:32:24]} {[%emt
00:00:10]} d6 {[%clk 01:24:48]} {[%emt 00:00:13]} 7. Bg5 {[%clk 01:32:45]}
{[%emt 00:00:07]} a6 {[%clk 01:25:04]} {[%emt 00:00:15]} 8. Na3 {[%clk
01:32:52]} {[%emt 00:00:19]} b5 {[%clk 01:25:11]} {[%emt 00:00:28]} 9. Nab1
{[%clk 01:33:10]} {[%emt 00:00:11]} Rb8 {[%clk 01:18:58]} {[%emt 00:06:43]} 10.
Nd5 {[%clk 01:12:55]} {[%emt 00:20:44]} Qa5+ {[%emt 00:05:51]} 11. Bd2 {[%clk
01:05:48]} {[%emt 00:07:35]} Qd8 {[%clk 01:09:39]} {[%emt 00:04:30]} 12. Bg5
{[%clk 01:05:10]} {[%emt 00:01:07]} Be7 {[%clk 01:09:34]} {[%emt 00:00:36]} 13.
Bxf6 {[%clk 01:05:15]} {[%emt 00:00:25]} Bxf6 {[%clk 01:09:57]} {[%emt
00:00:07]} 14. Be2 {[%clk 01:00:28]} {[%emt 00:05:16]} O-O {[%clk 01:07:23]}
{[%emt 00:03:04]} 15. O-O {[%clk 00:58:33]} {[%emt 00:02:25]} Bg5 {[%clk
01:07:04]} {[%emt 00:00:50]} 16. c3 {[%clk 00:40:40]} {[%emt 00:18:23]} a5
{[%clk 00:52:54]} {[%emt 00:14:40]} 17. a4 {[%clk 00:32:14]} {[%emt 00:08:57]}
b4 {[%clk 00:36:00]} {[%emt 00:17:25]} 18. Bb5 {[%clk 00:26:59]} {[%emt
00:05:44]} Na7 {[%clk 00:31:13]} {[%emt 00:05:17]} 19. Qd3 {[%clk 00:16:13]}
{[%emt 00:11:17]} f5 {[%clk 00:26:40]} {[%emt 00:05:03]} 20. cxb4 {[%clk
00:12:24]} {[%emt 00:04:19]} fxe4 {[%clk 00:23:33]} {[%emt 00:03:37]} 21. Qxe4
{[%clk 00:12:37]} {[%emt 00:00:17]} Nxb5 {[%clk 00:23:51]} {[%emt 00:00:12]} 22.
axb5 {[%clk 00:12:29]} {[%emt 00:00:37]} Bb7 {[%clk 00:22:44]} {[%emt
00:01:38]} 23. Nbc3 {[%clk 00:07:13]} {[%emt 00:05:46]} axb4 {[%clk 00:18:10]}
{[%emt 00:05:05]} 24. Qxb4 {[%clk 00:07:34]} {[%emt 00:00:08]} Bd2 {[%clk
00:17:34]} {[%emt 00:01:05]} 25. Rad1 {[%clk 00:07:21]} {[%emt 00:00:43]} Bxd5
{[%clk 00:13:20]} {[%emt 00:04:44]} 26. Rxd2 {[%clk 00:03:24]} {[%emt
00:04:28]} Bxg2 {[%clk 00:13:22]} {[%emt 00:00:28]} 27. Qxd6 {[%clk 00:00:45]}
{[%emt 00:03:09]} Qxd6 {[%clk 00:08:50]} {[%emt 00:05:01]} 28. Rxd6 {[%clk
00:01:13]} {[%emt 00:00:02]} Bxf1 {[%clk 00:09:14]} {[%emt 00:00:06]} 29. Kxf1
{[%clk 00:01:39]} {[%emt 00:00:05]} Rbd8 {[%clk 00:04:50]} {[%emt 00:04:55]} 30.
Re6 {[%clk 00:00:52]} {[%emt 00:01:16]} Rfe8 {[%clk 00:02:55]} {[%emt
00:02:25]} 31. Rc6 {[%clk 00:00:33]} {[%emt 00:00:49]} Rd2 {[%clk 00:02:44]}
{[%emt 00:00:41]} 32. Na4 {[%clk 00:00:32]} {[%emt 00:00:32]} Rf8 {[%clk
00:01:53]} {[%emt 00:01:21]} 33. b6 {[%clk 00:01:00]} {[%emt 00:00:03]} Rfxf2+
{[%clk 00:00:46]} {[%emt 00:01:37]} 34. Kg1 {[%clk 00:01:08]} {[%emt 00:00:20]}
Rg2+ {[%clk 00:00:59]} {[%emt 00:00:17]} 35. Kh1 {[%clk 00:00:43]} {[%emt
00:00:55]} Rxh2+ {[%clk 00:01:25]} {[%emt 00:00:04]} 36. Kg1 {[%clk 00:01:10]}
{[%emt 00:00:04]} Rhg2+ {[%clk 00:01:46]} {[%emt 00:00:10]} 37. Kh1 {[%clk
00:01:35]} {[%emt 00:00:04]} Rge2 {[%clk 00:01:50]} {[%emt 00:00:25]} 38. Rc1
{[%clk 00:01:59]} {[%emt 00:00:06]} Rxb2 {[%clk 00:01:06]} {[%emt 00:01:15]}
0-1

[Event "Top 12 Féminin 2026"]
[Site "Asnières-sur-Seine, France"]
[Date "2026.05.13"]
[Round "1.8"]
[White "Aflalo, Sophie"]
[Black "Choisy, Mathilde"]
[Result "1-0"]
[TimeControl "1h30 / 40 moves + 30m + 30sec/move"]
[WhiteTitle "-"]
[BlackTitle "WFM"]
[WhiteFideId "-"]
[BlackFideId "-"]
[WhiteElo "2155"]
[BlackElo "2096"]

1. e4 {[%clk 01:30:42]} {[%emt 00:00:17]} e6 {[%clk 01:30:51]} {[%emt
00:00:09]} 2. d4 {[%clk 01:30:28]} {[%emt 00:00:43]} d5 {[%clk 01:31:16]}
{[%emt 00:00:06]} 3. e5 {[%clk 01:30:53]} {[%emt 00:00:05]} c5 {[%clk
01:31:37]} {[%emt 00:00:09]} 4. c3 {[%clk 01:31:14]} {[%emt 00:00:09]} Nc6
{[%clk 01:31:47]} {[%emt 00:00:20]} 5. Nf3 {[%clk 01:31:38]} {[%emt 00:00:06]}
Bd7 {[%clk 01:31:39]} {[%emt 00:00:39]} 6. Bd3 {[%clk 01:30:42]} {[%emt
00:01:25]} Rc8 {[%clk 01:30:45]} {[%emt 00:01:24]} 7. O-O {[%clk 01:23:35]}
{[%emt 00:07:36]} cxd4 {[%clk 01:29:43]} {[%emt 00:01:33]} 8. Bf4 {[%clk
01:11:36]} {[%emt 00:12:29]} Nge7 {[%clk 01:13:46]} {[%emt 00:16:27]} 9. Bg3
{[%clk 01:00:51]} {[%emt 00:11:15]} dxc3 {[%clk 01:02:20]} {[%emt 00:11:56]} 10.
Nxc3 {[%clk 01:00:40]} {[%emt 00:00:41]} a6 {[%clk 00:54:11]} {[%emt 00:08:40]}
11. Ng5 {[%clk 00:37:37]} {[%emt 00:23:29]} g6 {[%clk 00:37:39]} {[%emt
00:17:05]} 12. h4 {[%clk 00:23:33]} {[%emt 00:14:33]} Bg7 {[%clk 00:31:14]}
{[%emt 00:06:54]} 13. Nf3 {[%clk 00:19:29]} {[%emt 00:04:34]} Na5 {[%clk
00:16:32]} {[%emt 00:15:12]} 14. h5 {[%clk 00:16:29]} {[%emt 00:03:31]} Nc4
{[%clk 00:16:51]} {[%emt 00:00:12]} 15. Qc1 {[%clk 00:16:41]} {[%emt 00:00:18]}
Qc7 {[%clk 00:13:16]} {[%emt 00:04:05]} 16. h6 {[%clk 00:09:09]} {[%emt
00:08:02]} Bxe5 {[%clk 00:08:38]} {[%emt 00:05:08]} 17. Nxe5 {[%clk 00:05:34]}
{[%emt 00:04:04]} Nxe5 {[%clk 00:09:04]} {[%emt 00:00:04]} 18. Qg5 {[%clk
00:05:23]} {[%emt 00:00:41]} N7c6 {[%clk 00:03:46]} {[%emt 00:05:49]} 19. Rfe1
{[%clk 00:04:56]} {[%emt 00:00:57]} f5 {[%clk 00:02:36]} {[%emt 00:01:40]} 20.
Nxd5 {[%clk 00:03:53]} {[%emt 00:01:32]} exd5 {[%clk 00:02:31]} {[%emt
00:00:36]} 21. Bxe5 {[%clk 00:04:05]} {[%emt 00:00:18]} Nxe5 {[%clk 00:02:19]}
{[%emt 00:00:42]} 22. Qf6 {[%clk 00:04:10]} {[%emt 00:00:25]} Rf8 {[%clk
00:00:41]} {[%emt 00:02:08]} 23. Rxe5+ {[%clk 00:04:35]} {[%emt 00:00:05]} 1-0

[Event "Top 12 Féminin 2026"]
[Site "Asnières-sur-Seine, France"]
[Date "2026.05.13"]
[Round "1.9"]
[White "Cosma, Elena-Luminita"]
[Black "Vega Gutierrez, Sabrina"]
[Result "0-1"]
[TimeControl "1h30 / 40 moves + 30m + 30sec/move"]
[WhiteTitle "WGM"]
[BlackTitle "IM"]
[WhiteFideId "-"]
[BlackFideId "-"]
[WhiteElo "2241"]
[BlackElo "2375"]

1. Nf3 {[%clk 01:30:56]} {[%emt 00:00:03]} d5 {[%clk 01:30:53]} {[%emt
00:00:08]} 2. g3 {[%clk 01:31:18]} {[%emt 00:00:08]} Nf6 {[%clk 01:30:56]}
{[%emt 00:00:27]} 3. Bg2 {[%clk 01:31:39]} {[%emt 00:00:09]} e6 {[%clk
01:31:14]} {[%emt 00:00:12]} 4. O-O {[%clk 01:31:58]} {[%emt 00:00:12]} Bd6
{[%clk 01:31:24]} {[%emt 00:00:20]} 5. c4 {[%clk 01:31:16]} {[%emt 00:01:12]}
O-O {[%clk 01:31:29]} {[%emt 00:00:24]} 6. d4 {[%clk 01:27:16]} {[%emt
00:04:30]} Nc6 {[%clk 01:31:45]} {[%emt 00:00:14]} 7. Nbd2 {[%clk 01:25:08]}
{[%emt 00:02:39]} a5 {[%clk 01:31:11]} {[%emt 00:01:03]} 8. b3 {[%clk
01:21:28]} {[%emt 00:04:10]} Ne4 {[%clk 01:30:06]} {[%emt 00:01:35]} 9. Bb2
{[%clk 01:06:38]} {[%emt 00:15:20]} f5 {[%clk 01:30:04]} {[%emt 00:00:31]} 10.
Rc1 {[%clk 00:57:02]} {[%emt 00:10:07]} Qe8 {[%clk 01:28:43]} {[%emt 00:01:51]}
11. Ne5 {[%clk 00:53:08]} {[%emt 00:04:24]} Ne7 {[%clk 01:14:11]} {[%emt
00:15:02]} 12. Nd3 {[%clk 00:47:32]} {[%emt 00:06:06]} Ng6 {[%clk 00:59:52]}
{[%emt 00:14:49]} 13. e3 {[%clk 00:31:17]} {[%emt 00:16:45]} b6 {[%clk
00:51:07]} {[%emt 00:09:15]} 14. Nb1 {[%clk 00:25:17]} {[%emt 00:06:31]} Ba6
{[%clk 00:45:45]} {[%emt 00:05:52]} 15. Ba3 {[%clk 00:21:00]} {[%emt 00:04:47]}
dxc4 {[%clk 00:41:19]} {[%emt 00:04:57]} 16. bxc4 {[%clk 00:21:17]} {[%emt
00:00:12]} Rb8 {[%clk 00:19:44]} {[%emt 00:22:04]} 17. Re1 {[%clk 00:19:27]}
{[%emt 00:02:20]} Kh8 {[%clk 00:14:23]} {[%emt 00:05:51]} 18. c5 {[%clk
00:07:09]} {[%emt 00:12:48]} Be7 {[%clk 00:09:42]} {[%emt 00:05:11]} 19. cxb6
{[%clk 00:07:03]} {[%emt 00:00:36]} cxb6 {[%clk 00:10:05]} {[%emt 00:00:08]} 20.
Bxe7 {[%clk 00:05:14]} {[%emt 00:02:19]} Qxe7 {[%clk 00:09:27]} {[%emt
00:01:07]} 21. Nc3 {[%clk 00:04:42]} {[%emt 00:01:03]} Nxc3 {[%clk 00:04:27]}
{[%emt 00:05:30]} 22. Rxc3 {[%clk 00:05:07]} {[%emt 00:00:05]} Rfc8 {[%clk
00:04:41]} {[%emt 00:00:16]} 23. Rxc8+ {[%clk 00:02:46]} {[%emt 00:02:51]} Rxc8
{[%clk 00:05:10]} {[%emt 00:00:02]} 24. Qd2 {[%clk 00:02:22]} {[%emt 00:00:54]}
Qa3 {[%clk 00:04:04]} {[%emt 00:01:36]} 25. Rc1 {[%clk 00:02:06]} {[%emt
00:00:46]} Rxc1+ {[%clk 00:01:34]} {[%emt 00:02:59]} 26. Qxc1 {[%clk 00:02:09]}
{[%emt 00:00:26]} Qxd3 {[%clk 00:01:38]} {[%emt 00:00:27]} 27. h4 {[%clk
00:01:36]} {[%emt 00:01:03]} Qc4 {[%clk 00:01:47]} {[%emt 00:00:21]} 28. Qa3
{[%clk 00:01:26]} {[%emt 00:00:40]} Qb4 {[%clk 00:02:10]} {[%emt 00:00:07]} 29.
Qc1 {[%clk 00:01:40]} {[%emt 00:00:15]} Qd6 {[%clk 00:01:40]} {[%emt 00:01:01]}
0-1

[Event "Top 12 Féminin 2026"]
[Site "Asnières-sur-Seine, France"]
[Date "2026.05.13"]
[Round "1.10"]
[White "Haussernot, Cecile"]
[Black "Monpeurt, Cyrielle"]
[Result "1/2-1/2"]
[TimeControl "1h30 / 40 moves + 30m + 30sec/move"]
[WhiteTitle "WIM"]
[BlackTitle "WFM"]
[WhiteFideId "-"]
[BlackFideId "-"]
[WhiteElo "2243"]
[BlackElo "2199"]

1. e4 {[%clk 01:30:57]} {[%emt 00:00:03]} e5 {[%clk 01:30:50]} {[%emt
00:00:10]} 2. Nf3 {[%clk 01:31:13]} {[%emt 00:00:14]} Nc6 {[%clk 01:31:12]}
{[%emt 00:00:08]} 3. Nc3 {[%clk 01:31:36]} {[%emt 00:00:08]} Nf6 {[%clk
01:31:13]} {[%emt 00:00:29]} 4. a3 {[%clk 01:32:01]} {[%emt 00:00:06]} g6
{[%clk 01:25:01]} {[%emt 00:06:41]} 5. Bc4 {[%clk 01:31:36]} {[%emt 00:00:55]}
Bg7 {[%clk 01:25:01]} {[%emt 00:00:30]} 6. d3 {[%clk 01:31:42]} {[%emt
00:00:25]} d6 {[%clk 01:24:27]} {[%emt 00:01:03]} 7. h3 {[%clk 01:28:50]}
{[%emt 00:03:21]} O-O {[%clk 01:22:26]} {[%emt 00:02:31]} 8. Be3 {[%clk
01:16:14]} {[%emt 00:13:06]} a6 {[%clk 01:17:55]} {[%emt 00:05:01]} 9. Qd2
{[%clk 01:14:24]} {[%emt 00:02:20]} b5 {[%clk 01:16:12]} {[%emt 00:02:14]} 10.
Bb3 {[%clk 01:05:59]} {[%emt 00:08:55]} Be6 {[%clk 01:05:23]} {[%emt 00:11:19]}
11. Nd5 {[%clk 00:57:50]} {[%emt 00:08:39]} Bxd5 {[%clk 01:02:42]} {[%emt
00:03:10]} 12. exd5 {[%clk 00:55:09]} {[%emt 00:03:12]} Ne7 {[%clk 01:02:38]}
{[%emt 00:00:34]} 13. Bg5 {[%clk 00:54:38]} {[%emt 00:01:00]} Qd7 {[%clk
01:00:27]} {[%emt 00:02:40]} 14. Bxf6 {[%clk 00:53:33]} {[%emt 00:01:35]} Bxf6
{[%clk 01:00:40]} {[%emt 00:00:17]} 15. O-O {[%clk 00:53:22]} {[%emt 00:00:41]}
Bg7 {[%clk 00:50:43]} {[%emt 00:10:27]} 16. a4 {[%clk 00:31:52]} {[%emt
00:22:00]} h6 {[%clk 00:43:12]} {[%emt 00:07:59]} 17. axb5 {[%clk 00:27:02]}
{[%emt 00:05:22]} axb5 {[%clk 00:43:30]} {[%emt 00:00:11]} 18. Qb4 {[%clk
00:23:38]} {[%emt 00:03:55]} g5 {[%clk 00:41:47]} {[%emt 00:02:13]} 19. Rfe1
{[%clk 00:21:53]} {[%emt 00:02:14]} Ng6 {[%clk 00:41:01]} {[%emt 00:01:16]} 20.
c4 {[%clk 00:11:29]} {[%emt 00:10:55]} Nf4 {[%clk 00:33:32]} {[%emt 00:07:59]}
21. Qxb5 {[%clk 00:07:55]} {[%emt 00:04:04]} Qf5 {[%clk 00:32:51]} {[%emt
00:01:11]} 22. Rxa8 {[%clk 00:05:55]} {[%emt 00:02:30]} Re8 {[%emt 00:00:24]}
23. Rb8 Rxb8 {[%clk 00:32:57]} 24. Qb6 {[%emt 00:00:09]} Ra8 25. Qb7 {[%clk
00:06:16]} Rf8 {[%clk 00:32:18]} {[%emt 00:01:09]} 26. Re3 {[%clk 00:04:04]}
{[%emt 00:02:42]} h5 {[%clk 00:22:50]} {[%emt 00:09:58]} 27. Ne1 {[%clk
00:03:28]} {[%emt 00:01:05]} g4 {[%clk 00:22:20]} {[%emt 00:01:00]} 28. hxg4
{[%clk 00:03:54]} {[%emt 00:00:05]} hxg4 {[%clk 00:22:26]} {[%emt 00:00:24]} 29.
Bd1 {[%clk 00:04:07]} {[%emt 00:00:16]} Qh5 {[%clk 00:21:18]} {[%emt 00:01:37]}
30. Rg3 {[%clk 00:02:17]} {[%emt 00:02:20]} f5 {[%clk 00:21:26]} {[%emt
00:00:23]} 31. Qxc7 {[%clk 00:02:44]} {[%emt 00:00:03]} Rf6 {[%clk 00:17:55]}
{[%emt 00:04:00]} 32. Nf3 {[%clk 00:03:03]} {[%emt 00:00:12]} Nxd3 {[%clk
00:09:58]} {[%emt 00:08:27]} 33. Qc8+ {[%clk 00:01:44]} {[%emt 00:01:49]} Kh7
{[%clk 00:09:58]} {[%emt 00:00:30]} 34. Nxe5 {[%clk 00:01:46]} {[%emt
00:00:28]} Nf4 {[%clk 00:05:23]} {[%emt 00:05:05]} 35. Rxg4 {[%clk 00:00:45]}
{[%emt 00:01:30]} fxg4 {[%clk 00:05:30]} {[%emt 00:00:23]} 36. Nxg4 {[%clk
00:01:14]} {[%emt 00:00:01]} Qg6 {[%clk 00:04:04]} {[%emt 00:01:57]} 37. Nxf6+
{[%clk 00:01:34]} {[%emt 00:00:10]} Bxf6 {[%clk 00:04:29]} {[%emt 00:00:05]} 38.
Bg4 {[%clk 00:01:16]} {[%emt 00:00:48]} Kh6 {[%clk 00:03:15]} {[%emt 00:01:44]}
39. g3 {[%clk 00:01:03]} {[%emt 00:00:42]} Qb1+ {[%clk 00:01:57]} {[%emt
00:01:48]} 40. Kh2 {[%clk 00:01:32]} {[%emt 00:00:02]} Ng6 {[%clk 00:01:36]}
{[%emt 00:00:51]} 41. Qe6 {[%clk 00:00:40]} {[%emt 00:01:22]} Qxb2 {[%clk
00:01:29]} {[%emt 00:00:37]} 42. Kg2 {[%clk 00:00:38]} {[%emt 00:00:32]} Qe5
{[%clk 00:00:34]} {[%emt 00:01:25]} 43. Qc8 {[%clk 00:00:35]} {[%emt 00:00:32]}
Qd4 {[%clk 00:26:28]} {[%emt 00:04:36]} 44. Qe6 {[%clk 00:17:52]} {[%emt
00:13:13]} Kg7 {[%clk 00:25:49]} {[%emt 00:01:09]} 45. Qd7+ {[%clk 00:16:49]}
{[%emt 00:01:33]} Ne7 {[%clk 00:24:56]} {[%emt 00:01:23]} 46. Bf3 {[%clk
00:15:50]} {[%emt 00:01:29]} Qc5 {[%clk 00:22:38]} {[%emt 00:02:48]} 47. Qg4+
{[%clk 00:15:23]} {[%emt 00:00:57]} Kf8 {[%clk 00:19:34]} {[%emt 00:03:34]} 48.
Qe6 {[%clk 00:15:09]} {[%emt 00:00:44]} Kg7 {[%clk 00:18:39]} {[%emt 00:01:26]}
49. Qg4+ {[%clk 00:11:39]} {[%emt 00:03:59]} Kf8 {[%clk 00:18:57]} {[%emt
00:00:12]} 50. Qe6 {[%clk 00:11:23]} {[%emt 00:00:47]} Kg7 {[%emt 00:01:18]} 51.
Bh5 {[%clk 00:11:25]} Qd4 {[%clk 00:18:06]} 1/2-1/2